fUSD/lending_fUSD_20250619
["ID","MTS","AMOUNT","RATE_DAILY","PERIOD"]
[366496903,1750291452491,679.0,0.00024658,120]
[366497286,1750291685933,154.88,0.00013699,2]
[366497312,1750291831849,-285.71773869,0.00015957,2]
[366497314,1750291831865,-9.66421585,0.00015957,2]
[366497315,1750291831877,-161.5222308,0.00015957,2]
[366497317,1750291831885,-998.789265,0.00016057,2]
[366497318,1750291831895,-169.94402502,0.00016256,2]
[366497319,1750291831904,-232.73691437,0.00016337,2]
[366497320,1750291831914,-300.0,0.00016437,2]
[366497321,1750291831925,-172.86246256,0.00016438,2]
[366497322,1750291831933,-172.86246256,0.00016438,2]
[366497323,1750291831943,-151.0,0.00017167,2]
[366497324,1750291831954,-151.0,0.00017235,2]
[366497325,1750291831964,-232.73691437,0.00018997,2]
[366497326,1750291831974,-1067.29345827,0.00019101,2]
[366497327,1750291831987,-968.0,0.00019249,2]
[366497328,1750291831998,-300.0,0.00019781,2]
[366497329,1750291832008,-860.56708751,0.000199,2]
[366497330,1750291832017,-600.0,0.00019973,2]
[366497331,1750291832027,-191.80224167,0.00019974,2]
[366497332,1750291832062,-1008.19775833,0.00019974,2]
[366497333,1750291832073,-250.0,0.00019975,2]
[366497334,1750291832083,-300.0,0.00019975,2]
[366497335,1750291832093,-860.56708734,0.00020486,3]
[366497336,1750291832102,-2000.0,0.000205,2]
[366497337,1750291832113,-154.88,0.00020951,2]
[366497338,1750291832123,-860.56708734,0.00021072,4]
[366497339,1750291832132,-250.0,0.0002133,2]
[366497340,1750291832142,-232.73691437,0.00021657,2]
[366497341,1750291832152,-860.56708734,0.00021659,5]
[366497342,1750291832162,-200.0,0.00021744,2]
[366497343,1750291832171,-200.0,0.00021744,2]
[366497344,1750291832181,-635.17190065,0.00021747,2]
[366497345,1750291832192,-300.0,0.00021748,2]
[366497346,1750291832202,-1000.0,0.00021756,2]
[366497348,1750291832211,-4689.09,0.00021757,2]
[366497350,1750291832221,-663.4,0.00021757,2]
[366497352,1750291832231,-3432.64,0.00021757,2]
[366497354,1750291832240,-5560.62,0.00021757,2]
[366497356,1750291832250,-216.08,0.00021757,2]
[366497358,1750291832259,-3562.51,0.00021757,2]
[366497360,1750291832269,-1549.8,0.00021757,2]
[366497362,1750291832278,-999.99,0.00021757,2]
[366497364,1750291832288,-2868.72,0.00021757,2]
[366497366,1750291832298,-299.03,0.00021757,2]
[366497368,1750291832307,-4971.44,0.00021757,2]
[366497370,1750291832316,-150.99,0.00021757,2]
[366497372,1750291832326,-299.99,0.00021757,7]
[366497374,1750291832335,-499.99,0.00021757,2]
[366497376,1750291832345,-150.99,0.00021757,2]
[366497378,1750291832354,-1415.27,0.00021757,2]
[366497380,1750291832364,-2181.99,0.00021757,2]
[366497382,1750291832373,-1447.0,0.00021854,2]
[366497384,1750291832383,-250.0,0.00021955,2]
[366497386,1750291832392,-300.0,0.00021955,2]
[366497388,1750291832401,-151.0,0.00022221,2]
[366497390,1750291832411,-459.10430333,0.00022221,2]
[366497393,1750291832420,-693.3919763,0.00022221,2]
[366497397,1750291832430,-207.4,0.00022221,2]
[366497400,1750291832440,-860.56708734,0.00022245,6]
[366497403,1750291832449,-860.56708734,0.00022831,8]
[366497405,1750291832458,-632.09,0.00023,2]
[366497407,1750291832468,-150.0,0.0002313,2]
[366497409,1750291832479,-700.0,0.0002317,2]
[366497411,1750291832488,-293.98574344,0.00023288,2]
[366497413,1750291832498,-1000.0,0.0002329,2]
[366497415,1750291832507,-2000.0,0.000233,2]
[366497417,1750291832517,-1000.0,0.00023377,2]
[366497419,1750291832527,-860.56708734,0.00023417,9]
[366497421,1750291832536,-1956.87,0.000235,2]
[366497423,1750291832545,-156.587,0.0002359,2]
[366497425,1750291832555,-215.0738,0.0002359,2]
[366497427,1750291832564,-150.0,0.00023747,2]
[366497429,1750291832574,-658.35,0.00023836,2]
[366497431,1750291832583,-860.56708734,0.00024003,10]
[366497433,1750291832593,-150.0,0.00024365,2]
[366497435,1750291832602,-7112.0,0.00024422,2]
[366497437,1750291832612,-2483.651,0.00024422,2]
[366497439,1750291832621,-854.0,0.00024422,2]
[366497441,1750291832631,-200.0,0.00024483,2]
[366497443,1750291832640,-860.56708734,0.0002459,11]
[366497445,1750291832650,-400.0,0.0002467,2]
[366497447,1750291832660,-400.0,0.0002477,2]
[366497449,1750291832670,-151.0,0.000249,2]
[366497451,1750291832679,-151.0,0.000249,2]
[366497453,1750291832689,-151.0,0.000249,2]
[366497455,1750291832698,-151.0,0.000249,2]
[366497457,1750291832707,-151.0,0.000249,2]
[366497459,1750291832717,-154.0,0.000249,2]
[366497461,1750291832727,-151.0,0.000249,2]
[366497463,1750291832736,-154.0,0.000249,2]
[366497465,1750291832746,-151.0,0.000249,2]
[366497467,1750291832756,-155.17344834,0.000249,2]
[366497469,1750291832765,-151.0,0.000249,2]
[366497471,1750291832775,-260.21872113,0.000249,2]
[366497473,1750291832784,-162.380719,0.00024959,2]
[366497475,1750291832794,-223.0315306,0.00024959,2]
[366497477,1750291832803,-400.0,0.0002497,2]
[366497479,1750291832813,-916.70980475,0.0002497,2]
[366497481,1750291832823,-225.73702943,0.0002497,2]
[366497483,1750291832832,-197.29713,0.0002497,2]
[366497485,1750291832842,-150.0,0.00024983,2]
[366497487,1750291832851,-165.71,0.00024998,2]
[366497489,1750291832861,-727.53583982,0.00024999,2]
[366497491,1750291832871,-46.75485854,0.00025,5]
[366497493,1750291832885,-200.0,0.00025,2]
[366497495,1750291832894,-150.0,0.00025035,2]
[366497497,1750291832905,-3333.0,0.00025052,2]
[366497499,1750291832914,-946.0,0.00025052,2]
[366497501,1750291832925,-802.0,0.00025052,2]
[366497503,1750291832936,-637.0,0.00025052,2]
[366497505,1750291832946,-928.0,0.00025052,2]
[366497507,1750291832956,-1277.0,0.00025052,2]
[366497510,1750291832967,-2003.0,0.00025052,2]
[366497511,1750291832977,-590.0,0.00025052,2]
[366497513,1750291832987,-558.0,0.00025052,2]
[366497515,1750291832996,-1674.0,0.00025052,2]
[366497517,1750291833005,-833.92080167,0.00025094,2]
[366497519,1750291833015,-197.29713,0.000251,2]
[366497522,1750291833026,-1524.0,0.00025137,2]
[366497524,1750291833035,-860.56708734,0.00025176,12]
[366497525,1750291833045,-200.0,0.0002525,2]
[366497528,1750291833056,-168.0,0.0002531,2]
[366497529,1750291833066,-168.0,0.00025332,2]
[366497532,1750291833076,-1524.0,0.00025396,2]
[366497533,1750291833086,-168.0,0.00025428,2]
[366497536,1750291833096,-559.5,0.00025435,15]
[366497538,1750291833108,-197.29714,0.000256,2]
[366497539,1750291833118,-150.0,0.00025601,2]
[366497542,1750291833127,-1524.0,0.00025656,2]
[366497543,1750291833137,-927.05,0.00025724,30]
[366497545,1750291833147,-860.56708734,0.00025762,13]
[366497548,1750291833157,-953.54765021,0.00025815,3]
[366497549,1750291833167,-1524.0,0.00025915,2]
[366497551,1750291833177,-541.79876727,0.00025915,2]
[366497554,1750291833187,-168.0,0.0002594,2]
[366497555,1750291833197,-169.94,0.0002597,2]
[366497557,1750291833207,-1031.0,0.00026,2]
[366497559,1750291833216,-197.29713,0.000261,2]
[366497561,1750291833226,-1524.0,0.00026174,2]
[366497563,1750291833236,-1000.0,0.00026201,2]
[366497565,1750291833246,-150.0,0.00026219,2]
[366497567,1750291833256,-168.0,0.00026227,2]
[366497569,1750291833266,-175.98,0.00026295,120]
[366497571,1750291833276,-168.3888056,0.00026328,2]
[366497573,1750291833285,-231.28369723,0.00026328,2]
[366497575,1750291833295,-860.56708734,0.00026348,14]
[366497577,1750291833305,-168.0,0.0002642,2]
[366497579,1750291833315,-1524.0,0.00026433,2]
[366497581,1750291833324,-8371.91,0.000265,2]
[366497583,1750291833334,-1956.87,0.000265,2]
[366497585,1750291833343,-168.0,0.00026506,2]
[366497587,1750291833353,-197.29714,0.000266,2]
[366497589,1750291833362,-1524.0,0.00026692,2]
[366497591,1750291833371,-1000.0,0.00026817,2]
[366497593,1750291833381,-150.0,0.00026837,2]
[366497595,1750291833390,-860.56708734,0.00026934,16]
[366497597,1750291833400,-168.0,0.00027,7]
[366497599,1750291833410,-197.29713,0.000271,2]
[366497601,1750291833420,-161.02,0.0002718,2]
[366497602,1750291833429,-168.0,0.00027224,2]
[366497603,1750291833438,-168.0,0.00027345,2]
[366497604,1750291833447,-300.0,0.00027397,2]
[366497605,1750291833456,-176.46,0.00027397,10]
[366497606,1750291833465,-723.0,0.000274,2]
[366497607,1750291833474,-527.39715292,0.000274,2]
[366497608,1750291833484,-385.0,0.000274,2]
[366497609,1750291833494,-150.0,0.00027455,2]
[366497610,1750291833503,-860.56708734,0.00027521,17]
[366497611,1750291833512,-168.0,0.00027613,2]
[366497612,1750291833522,-202.0,0.00027634,2]
[366497613,1750291833532,-174.61919141,0.00027697,2]
[366497614,1750291833541,-239.84119403,0.00027697,2]
[366497615,1750291833550,-150.0,0.00027698,2]
[366497616,1750291833560,-168.0,0.00027896,2]
[366497617,1750291833569,-150.0,0.00028073,2]
[366497619,1750291833579,-860.56708734,0.00028107,18]
[366497621,1750291833589,-154.88,0.00028203,2]
[366497623,1750291833599,-596.95,0.000285,2]
[366497625,1750291833608,-150.0,0.0002869,2]
[366497627,1750291833618,-860.56708734,0.00028693,19]
[366497629,1750291833628,-202.0,0.00028713,3]
[366497631,1750291833637,-1031.90370056,0.000288,2]
[366497633,1750291833647,-175.98,0.00028924,120]
[366497635,1750291833657,-295.84,0.00028927,2]
[366497637,1750291833667,-181.08010149,0.00029066,2]
[366497639,1750291833676,-248.71531821,0.00029066,2]
[366497642,1750291833722,-1000.0,0.00029112,2]
[366497644,1750291833732,-860.56708734,0.00029279,20]
[366497646,1750291833742,-150.0,0.00029308,2]
[366497649,1750291833751,-202.0,0.00029792,5]
[366497651,1750291833761,-860.56708734,0.00029866,21]
[366497652,1750291833770,-150.0,0.00029926,2]
[366497655,1750291833780,-300.0,0.0002997,2]
[366497657,1750291833790,-400.0,0.0002997,2]
[366497659,1750291833800,-1896.27,0.000301,7]
[366497661,1750291833809,-300.0,0.00030137,80]
[366497663,1750291833818,-1519.209,0.00030384,26]
[366497665,1750291833828,-187.78006525,0.00030435,2]
[366497667,1750291833837,-257.91778498,0.00030435,2]
[366497669,1750291833847,-860.56708734,0.00030452,23]
[366497671,1750291833856,-150.0,0.00030544,2]
[366497673,1750291833866,-4101.48,0.000308,2]
[366497674,1750291833879,-202.0,0.00030871,7]
[366497677,1750291833889,-860.56708734,0.00031038,24]
[366497679,1750291833899,-163.8452,0.00031084,2]
[366497680,1750291833908,-150.0,0.00031162,2]
[366497682,1750291833918,-1307.0249,0.00031173,2]
[366497685,1750291833928,-1000.0,0.00031173,2]
[366497686,1750291833938,-953.5476502,0.00031184,5]
[366497688,1750291833950,-29634.8944,0.00031184,2]
[366497690,1750291833960,-8371.91,0.000313,2]
[366497692,1750291833970,-1956.87,0.000313,2]
[366497694,1750291833981,-175.98,0.00031554,120]
[366497696,1750291833991,-502.96,0.00031614,2]
[366497698,1750291834001,-860.56708734,0.00031624,25]
[366497700,1750291834010,-150.0,0.0003178,2]
[366497702,1750291834021,-194.72792766,0.00031804,2]
[366497704,1750291834031,-267.46074303,0.00031804,2]
[366497706,1750291834042,-202.0,0.00031949,9]
[366497708,1750291834051,-1000.0,0.00032,2]
[366497710,1750291834061,-1000.0,0.00032023,2]
[366497712,1750291834071,-4101.48,0.000322,2]
[366497714,1750291834081,-860.56708734,0.0003221,26]
[366497716,1750291834091,-150.0,0.00032398,2]
[366497718,1750291834101,-259.0,0.0003244,5]
[366497720,1750291834110,-331.80841561,0.00032598,2]
[366497722,1750291834121,-174.93555114,0.00032598,15]
[366497724,1750291834131,-150.41843541,0.00032598,5]
[366497726,1750291834141,-150.41843539,0.00032599,5]
[366497728,1750291834150,-150.41843539,0.000326,5]
[366497730,1750291834160,-4286.03293876,0.00032608,2]
[366497732,1750291834169,-4363.8843,0.00032608,2]
[366497734,1750291834181,-6756.85331927,0.0003261,2]
[366497736,1750291834190,-1646.41653268,0.00032656,2]
[366497738,1750291834200,-161.22307584,0.00032656,4]
[366497741,1750291834209,-4286.03293872,0.00032657,2]
[366497743,1750291834219,-621.89343269,0.00032673,2]
[366497745,1750291834229,-500.0,0.00032673,5]
[366497774,1750291834506,-500.0,0.00032673,5]
[366497776,1750291834516,-6756.85331926,0.00032683,2]
[366497778,1750291834526,-502.96,0.00032686,2]
[366497780,1750291834536,-502.96,0.00032686,2]
[366497782,1750291834545,-5301.8,0.00032688,2]
[366497784,1750291834554,-502.96,0.00032688,2]
[366497786,1750291834564,-502.96,0.00032688,2]
[366497790,1750291834585,-150.51,0.00032688,2]
[366497792,1750291834595,-173.67996158,0.00032689,2]
[366497794,1750291834606,-53195.69640648,0.00032696,61]
[366497796,1750291834616,-17395.77586874,0.00032697,2]
[366497798,1750291834629,-128131.66380355,0.00032698,2]
[366497801,1750291834645,-4638.00535554,0.00032698,2]
[366497804,1750291834658,-1249.58361904,0.00032698,2]
[366497806,1750291834671,-594.4151086,0.00032698,2]
[366497808,1750291834683,-2024.14165359,0.00032698,2]
[366497810,1750291834695,-36311.06472001,0.00032698,2]
[366497812,1750291834707,-2959.6271114,0.00032698,2]
[366497815,1750291834719,-1693.6999999,0.00032698,2]
[366497817,1750291834733,-8836.48017089,0.00032698,2]
[366497821,1750291834762,-2682.45638455,0.00032698,2]
[366497823,1750291834774,-450.0,0.00032698,2]
[366497826,1750291834786,-1026.17742921,0.00032698,2]
[366497828,1750291834798,-513.55155404,0.00032698,2]
[366497830,1750291834811,-21222.6826368,0.00032698,2]
[366497836,1750291834850,-35661.63690333,0.00032698,2]
[366498158,1750291838020,-151.0,0.00017332,2]
[366498160,1750291838031,-155.0,0.00024422,2]
[366498162,1750291838042,-280.222,0.0003175,2]
[366498165,1750291838052,-3258.72286155,0.00032698,2]
[366498167,1750291838063,-35022.23793845,0.00032698,2]
[366498169,1750291838075,-679.93379039,0.00032698,2]
[366498186,1750291838232,-63775.62282836,0.00032698,2]
[366498188,1750291838243,-107680.246848,0.00032698,2]
[366498189,1750291838254,-94503.9048293,0.00032698,2]
[366498190,1750291838264,-1883.76251799,0.000327,4]
[366498325,1750291840205,-538.89194357,0.00024118,2]
[366498330,1750291840243,-329.59481836,0.00024118,2]
[366498332,1750291840252,-868.48676193,0.00024628,2]
[366498334,1750291840263,-868.48676193,0.00024671,2]
[366498336,1750291840273,-2543.2243,0.00027297,2]
[366498338,1750291840282,-570.77242654,0.00032698,2]
[366498341,1750291840294,-31455.57136221,0.00032698,2]
[366498343,1750291840306,-1781.137005,0.00032698,2]
[366498345,1750291840317,-1363.68834929,0.00032698,2]
[366498347,1750291840328,-6106.27801381,0.00032698,2]
[366498349,1750291840339,-7249.99216898,0.00032698,2]
[366498357,1750291840404,-551.15622138,0.00032698,2]
[366498377,1750291840592,-1166.4,0.00024422,2]
[366498379,1750291840602,-16223.9986036,0.00032698,2]
[366498381,1750291840613,-5644.33428867,0.00032698,2]
[366498510,1750291842979,-5183.02836681,0.00032698,2]
[366498511,1750291843067,-10718.0,0.00032698,2]
[366498512,1750291843079,-252989.51757982,0.00032698,2]
[366498513,1750291843090,-16667.59591746,0.00032698,2]
[366498514,1750291843140,-620.0,0.00032698,2]
[366498515,1750291843261,-159507.68917059,0.00032698,2]
[366498516,1750291843270,-2823.69616035,0.000327,4]
[366498517,1750291843280,-12134.07353298,0.000327,2]
[366498528,1750291845991,-2787.59565062,0.000327,2]
[366498529,1750291846002,-4973.88972786,0.00032705,2]
[366498530,1750291846012,-4286.03293872,0.00032706,2]
[366498531,1750291846022,-35893.415616,0.0003271,2]
[366498532,1750291846031,-24869.4486393,0.0003271,2]
[366498533,1750291846041,-6821.24430284,0.00032715,3]
[366498534,1750291846051,-17603.06559932,0.00032735,2]
[366498535,1750291846078,-1650.78381267,0.00032735,2]
[366498536,1750291846090,-16639.56620401,0.00032735,2]
[366498537,1750291846099,-24869.4486393,0.00032735,2]
[366498538,1750291846109,-4973.88972786,0.00032745,2]
[366498539,1750291846119,-5489.19047382,0.00032746,2]
[366498540,1750291846156,-4576.1029701,0.00032746,2]
[366498541,1750291846210,-25828.12217208,0.00032746,2]
[366498542,1750291846220,-10853.845929,0.00032746,2]
[366498543,1750291846231,-15949.75767,0.00032746,2]
[366498545,1750291846243,-3039.7347682,0.00032746,2]
[366498547,1750291846253,-2095.6146873,0.00032746,2]
[366498548,1750291846264,-2202.86655458,0.00032746,2]
[366498563,1750292645847,154.65,0.00013699,2]
[366498564,1750292674133,253.51,0.00014103,2]
[366498571,1750292893450,566.19,0.00013699,2]
[366498700,1750293031920,-600.0,0.000146,5]
[366498701,1750293031931,-124.11652513,0.0001465,2]
[366498703,1750293031973,-125.88347487,0.0001465,2]
[366498704,1750293031984,-600.0,0.0001465,4]
[366498705,1750293031994,-300.0,0.0001465,2]
[366498706,1750293032004,-1300.0,0.000147,5]
[366498707,1750293032014,-600.0,0.0001478,4]
[366498708,1750293032024,-300.0,0.0001478,2]
[366498709,1750293032033,-91.10909943,0.000148,5]
[366498710,1750293032045,-1596.9838965,0.000148,5]
[366498711,1750293032065,-311.90700407,0.000148,5]
[366498712,1750293032075,-1200.0,0.00014899,2]
[366498713,1750293032084,-374.47384414,0.000149,5]
[366498714,1750293032095,-559.46319352,0.000149,5]
[366498715,1750293032107,-684.52012881,0.000149,5]
[366498716,1750293032118,-1081.54283353,0.000149,5]
[366498717,1750293032128,-284.98881395,0.000149,2]
[366498718,1750293032137,-7256.39119479,0.000149,2]
[366498719,1750293032146,-1932.09729526,0.000149,2]
[366498720,1750293032156,-758.33995871,0.000149,2]
[366498721,1750293032166,-231.0,0.00014959,2]
[366498722,1750293032175,-360.0,0.00014959,2]
[366498723,1750293032185,-775.0,0.00014959,2]
[366498724,1750293032194,-2376.3122,0.00014959,2]
[366498725,1750293032204,-3316.98341624,0.0001499,2]
[366498726,1750293032214,-153.92,0.0001499,2]
[366498727,1750293032224,-153.92,0.0001499,2]
[366498728,1750293032235,-153.92,0.0001499,2]
[366498729,1750293032244,-153.92,0.0001499,2]
[366498730,1750293032253,-153.92,0.0001499,2]
[366498731,1750293032263,-255.98626235,0.0001499,2]
[366498732,1750293032273,-150.0,0.00014998,2]
[366498733,1750293032283,-188.95583352,0.00014999,2]
[366498734,1750293032293,-207.0912178,0.00014999,2]
[366498735,1750293032302,-500.0,0.00014999,2]
[366498736,1750293032312,-500.0,0.00014999,2]
[366498737,1750293032322,-186.69838822,0.00014999,2]
[366498738,1750293032332,-500.0,0.00014999,2]
[366498739,1750293032341,-500.0,0.00014999,2]
[366498740,1750293032350,-500.0,0.00014999,2]
[366498741,1750293032360,-430.04722557,0.00014999,2]
[366498742,1750293032370,-316.12544027,0.00014999,2]
[366498743,1750293032379,-500.0,0.00014999,2]
[366498744,1750293032388,-500.0,0.00014999,2]
[366498745,1750293032398,-500.0,0.00014999,2]
[366498746,1750293032407,-612.43238151,0.00014999,2]
[366498747,1750293032416,-623.84466073,0.00014999,2]
[366498749,1750293032426,-500.0,0.00014999,2]
[366498751,1750293032435,-500.0,0.00014999,2]
[366498753,1750293032444,-512.27183285,0.00014999,2]
[366498755,1750293032453,-500.0,0.00014999,2]
[366498758,1750293032462,-500.0,0.00014999,2]
[366498761,1750293032471,-500.0,0.00014999,2]
[366498764,1750293032482,-500.0,0.00014999,2]
[366498768,1750293032491,-500.0,0.00014999,2]
[366498771,1750293032501,-505.58096845,0.00014999,2]
[366498774,1750293032510,-500.0,0.00014999,2]
[366498776,1750293032520,-500.0,0.00014999,2]
[366498778,1750293032529,-187.02262265,0.00014999,2]
[366498780,1750293032539,-500.0,0.00014999,2]
[366498782,1750293032548,-500.0,0.00014999,2]
[366498784,1750293032558,-500.0,0.00014999,2]
[366498786,1750293032567,-391.88915587,0.00014999,2]
[366498788,1750293032576,-500.0,0.00014999,2]
[366498790,1750293032586,-500.0,0.00014999,2]
[366498792,1750293032595,-500.0,0.00014999,2]
[366498794,1750293032605,-500.0,0.00014999,2]
[366498796,1750293032615,-245.20574472,0.00014999,2]
[366498798,1750293032624,-500.0,0.00014999,2]
[366498800,1750293032634,-500.0,0.00014999,2]
[366498802,1750293032643,-500.0,0.00014999,2]
[366498804,1750293032652,-500.0,0.00014999,2]
[366498806,1750293032662,-500.0,0.00014999,2]
[366498808,1750293032671,-500.0,0.00014999,2]
[366498810,1750293032681,-500.0,0.00014999,2]
[366498812,1750293032690,-178.99559124,0.00014999,2]
[366498814,1750293032704,-500.0,0.00014999,2]
[366498816,1750293032714,-500.0,0.00014999,2]
[366498818,1750293032723,-500.0,0.00014999,2]
[366498820,1750293032733,-500.0,0.00014999,2]
[366498822,1750293032743,-500.0,0.00014999,2]
[366498824,1750293032752,-375.63179656,0.00014999,2]
[366498826,1750293032762,-500.0,0.00014999,2]
[366498828,1750293032772,-169.64502769,0.00014999,2]
[366498830,1750293032782,-499.99999999,0.00014999,2]
[366498832,1750293032792,-666.0,0.00014999,2]
[366498834,1750293032802,-205600.31204441,0.00015,2]
[366498839,1750293032840,-2088.32540325,0.00015,2]
[366498842,1750293032853,-18476.63833941,0.00015,2]
[366498844,1750293032866,-339.17912446,0.00015,2]
[366498847,1750293032890,-1063.44509394,0.00015,2]
[366498850,1750293032902,-2729.8716691,0.00015,2]
[366498852,1750293032914,-454.92529219,0.00015,2]
[366498854,1750293032926,-629.17442911,0.00015,2]
[366498856,1750293032938,-6254.13779521,0.00015,2]
[366498859,1750293032958,-2245.32583997,0.00015,2]
[366499336,1750293037915,-1814.69374335,0.00015,2]
[366499343,1750293037972,-10398.0,0.00015,2]
[366499349,1750293038029,-2837.57687575,0.00015,2]
[366499352,1750293038040,-2902719.70675291,0.00015,2]
[366499354,1750293038050,-250.0,0.00015,2]
[366499356,1750293038060,-3793.11218294,0.00015,2]
[366499358,1750293038070,-7256.3911947,0.00015402,2]
[366499360,1750293038080,-150.0,0.00015536,2]
[366499362,1750293038092,-500.0,0.00015636,2]
[366499364,1750293038101,-500.0,0.00015636,2]
[366499366,1750293038111,-500.0,0.00015636,2]
[366499368,1750293038121,-500.0,0.00015636,2]
[366499371,1750293038131,-500.0,0.00015636,2]
[366499373,1750293038142,-500.0,0.00015636,2]
[366499375,1750293038151,-1865.48533792,0.000158,2]
[366499377,1750293038162,-1865.48533775,0.000158,2]
[366499379,1750293038172,-7256.3911947,0.00015905,2]
[366499381,1750293038181,-151.0,0.00015953,2]
[366499383,1750293038191,-262.0,0.00015958,2]
[366499385,1750293038201,-6951.49327977,0.00016,2]
[366499387,1750293038211,-600.0,0.0001606,4]
[366499389,1750293038221,-250.0,0.0001606,2]
[366499391,1750293038230,-600.0,0.0001606,4]
[366499393,1750293038244,-300.0,0.0001606,2]
[366499395,1750293038256,-255.0,0.00016123,2]
[366499398,1750293038266,-1000.0,0.00016184,2]
[366499403,1750293038278,-1000.0,0.00016184,2]
[366499406,1750293038288,-1000.0,0.00016184,2]
[366499409,1750293038297,-501.09278441,0.00016184,2]
[366499412,1750293038307,-944.1048307,0.00016184,2]
[366499415,1750293038316,-1000.0,0.00016184,2]
[366499418,1750293038325,-663.15500916,0.00016247,2]
[366499421,1750293038335,-1865.48533775,0.00016279,2]
[366499424,1750293038344,-6999.51221417,0.00016316,2]
[366499427,1750293038354,-1680.0,0.00016389,2]
[366499430,1750293038363,-7256.3911947,0.00016407,2]
[366499433,1750293038373,-500.0,0.00016438,2]
[366499436,1750293038383,-500.0,0.00016438,2]
[366499439,1750293038393,-500.0,0.00016438,2]
[366499442,1750293038403,-370.69216763,0.00016438,2]
[366499445,1750293038412,-500.0,0.00016438,2]
[366499448,1750293038422,-162.68810004,0.00016438,2]
[366499451,1750293038431,-500.0,0.00016438,2]
[366499454,1750293038440,-500.0,0.00016438,2]
[366499456,1750293038449,-500.0,0.00016438,2]
[366499458,1750293038459,-500.0,0.00016438,2]
[366499460,1750293038468,-500.0,0.00016438,2]
[366499462,1750293038477,-500.0,0.00016438,2]
[366499464,1750293038487,-500.0,0.00016438,2]
[366499466,1750293038496,-500.0,0.00016438,2]
[366499468,1750293038506,-500.0,0.00016438,2]
[366499470,1750293038515,-500.0,0.00016438,2]
[366499472,1750293038525,-500.0,0.00016438,2]
[366499474,1750293038534,-500.0,0.00016438,2]
[366499476,1750293038543,-514.8074369,0.00016438,2]
[366499478,1750293038553,-500.0,0.00016438,2]
[366499480,1750293038563,-500.0,0.00016438,2]
[366499482,1750293038573,-500.0,0.00016438,2]
[366499484,1750293038582,-500.0,0.00016438,2]
[366499486,1750293038592,-500.0,0.00016438,2]
[366499488,1750293038601,-500.0,0.00016438,2]
[366499490,1750293038611,-500.0,0.00016438,2]
[366499493,1750293038621,-500.0,0.00016438,2]
[366499495,1750293038631,-500.0,0.00016438,2]
[366499497,1750293038640,-500.0,0.00016438,2]
[366499499,1750293038650,-500.0,0.00016438,2]
[366499501,1750293038659,-500.0,0.00016438,2]
[366499503,1750293038669,-500.0,0.00016438,2]
[366499505,1750293038678,-500.0,0.00016438,2]
[366499507,1750293038688,-500.0,0.00016438,2]
[366499509,1750293038703,-500.0,0.00016438,2]
[366499511,1750293038712,-500.0,0.00016438,2]
[366499513,1750293038722,-500.0,0.00016438,2]
[366499515,1750293038731,-500.0,0.00016438,2]
[366499517,1750293038742,-500.0,0.00016438,2]
[366499519,1750293038752,-500.0,0.00016438,2]
[366499521,1750293038760,-500.0,0.00016438,2]
[366499523,1750293038770,-500.0,0.00016438,2]
[366499525,1750293038781,-500.0,0.00016438,2]
[366499527,1750293038791,-500.0,0.00016438,2]
[366499529,1750293038800,-500.0,0.00016438,2]
[366499531,1750293038810,-500.0,0.00016438,2]
[366499533,1750293038820,-500.0,0.00016438,2]
[366499535,1750293038829,-500.0,0.00016438,2]